fUST/lending_fUST_20260602
["ID","MTS","AMOUNT","RATE_DAILY","PERIOD"]
[423768660,1780411752000,-500.0,0.00013698,2]
[423768655,1780411752000,-500.0,0.00013698,2]
[423768659,1780411752000,-501.70103336,0.00013698,2]
[423768657,1780411752000,-500.0,0.00013698,2]
[423768658,1780411752000,-512.05560788,0.00013698,2]
[423768656,1780411752000,-500.0,0.00013698,2]
[423768653,1780411752000,-501.13261171,0.00013698,2]
[423768664,1780411752000,-500.0,0.00013698,2]
[423768677,1780411752000,-623.52689862,0.00013698,2]
[423768676,1780411752000,-500.0,0.00013698,2]
[423768679,1780411752000,-501.3002568,0.00013698,2]
[423768678,1780411752000,-500.0,0.00013698,2]
[423768701,1780411752000,-500.0,0.00013898,2]
[423768702,1780411752000,-502.87089482,0.00013898,2]
[423768700,1780411752000,-500.0,0.00013898,2]
[423768699,1780411752000,-465.8989259,0.00013898,2]
[423768698,1780411752000,-440.32266565,0.00013898,2]
[423768697,1780411752000,-508.18888521,0.00013898,2]
[423768696,1780411752000,-500.0,0.00013898,2]
[423768695,1780411752000,-534.44284069,0.00013898,2]
[423768694,1780411752000,-501.04964608,0.00013898,2]
[423768693,1780411752000,-500.0,0.00013898,2]
[423768692,1780411752000,-500.0,0.00013898,2]
[423768703,1780411752000,-465.71125413,0.00013972,2]
[423768690,1780411752000,-1000.0,0.00013898,2]
[423768689,1780411752000,-500.0,0.00013898,2]
[423768688,1780411752000,-1000.0,0.00013699,2]
[423768687,1780411752000,-500.0,0.00013698,2]
[423768685,1780411752000,-500.0,0.00013698,2]
[423768686,1780411752000,-500.0,0.00013698,2]
[423768684,1780411752000,-500.40497197,0.00013698,2]
[423768680,1780411752000,-500.0,0.00013698,2]
[423768683,1780411752000,-500.0,0.00013698,2]
[423768682,1780411752000,-500.0,0.00013698,2]
[423768681,1780411752000,-500.0,0.00013698,2]
[423768691,1780411752000,-500.40219254,0.00013898,2]
[423768716,1780411753000,-500.0,0.00014246,2]
[423768720,1780411753000,-500.0,0.00014246,2]
[423768718,1780411753000,-500.0,0.00014246,2]
[423768719,1780411753000,-500.0,0.00014246,2]
[423768726,1780411753000,-185.344189,0.00014266,2]
[423768724,1780411753000,-500.0,0.00014246,2]
[423768723,1780411753000,-500.0,0.00014246,2]
[423768725,1780411753000,-500.0,0.00014246,2]
[423768717,1780411753000,-500.0,0.00014246,2]
[423768722,1780411753000,-500.0,0.00014246,2]
[423768715,1780411753000,-266.87025488,0.00014166,2]
[423768706,1780411753000,-500.0,0.00013972,2]
[423768712,1780411753000,-500.0,0.00013972,2]
[423768729,1780411753000,-500.0,0.0001452,2]
[423768714,1780411753000,-500.0,0.00013972,2]
[423768711,1780411753000,-392.35,0.00013972,2]
[423768710,1780411753000,-500.0,0.00013972,2]
[423768709,1780411753000,-500.0,0.00013972,2]
[423768707,1780411753000,-500.0,0.00013972,2]
[423768708,1780411753000,-500.0,0.00013972,2]
[423768704,1780411753000,-500.0,0.00013972,2]
[423768705,1780411753000,-500.0,0.00013972,2]
[423768713,1780411753000,-500.0,0.00013972,2]
[423768728,1780411753000,-500.0,0.0001452,2]
[423768745,1780411753000,-345.1453606,0.00014819,2]
[423768730,1780411753000,-500.0,0.0001452,2]
[423768752,1780411753000,-500.0,0.00015342,2]
[423768754,1780411753000,-500.0,0.00015616,2]
[423768753,1780411753000,-500.0,0.00015342,2]
[423768750,1780411753000,-165.1641,0.00015223,5]
[423768748,1780411753000,-500.0,0.00015068,2]
[423768751,1780411753000,-302.23860191,0.00015266,2]
[423768749,1780411753000,-500.0,0.00015068,2]
[423768746,1780411753000,-250.24208455,0.00014892,2]
[423768747,1780411753000,-320.0,0.00015,2]
[423768743,1780411753000,-500.0,0.00014794,2]
[423768744,1780411753000,-500.0,0.00014794,2]
[423768727,1780411753000,-500.0,0.0001452,2]
[423768742,1780411753000,-500.0,0.00014794,2]
[423768738,1780411753000,-500.0,0.00014794,2]
[423768740,1780411753000,-500.0,0.00014794,2]
[423768739,1780411753000,-500.0,0.00014794,2]
[423768736,1780411753000,-508.0,0.00014634,2]
[423768737,1780411753000,-500.0,0.00014794,2]
[423768731,1780411753000,-500.0,0.0001452,2]
[423768734,1780411753000,-500.0,0.0001452,2]
[423768735,1780411753000,-500.0,0.0001452,2]
[423768733,1780411753000,-500.0,0.0001452,2]
[423768732,1780411753000,-376.8601509,0.0001452,2]
[423768741,1780411753000,-500.0,0.00014794,2]
[423768769,1780411754000,-377.53942092,0.00016876,2]
[423768771,1780411754000,-220.15037919,0.00016879,2]
[423768770,1780411754000,-152.59385746,0.00016876,2]
[423768772,1780411754000,-316.03953078,0.00016879,2]
[423768779,1780411754000,-306.32109145,0.00016936,2]
[423768774,1780411754000,-324.37890356,0.00016936,2]
[423768773,1780411754000,-167.33536892,0.00016879,2]
[423768776,1780411754000,-190.92057883,0.00016936,2]
[423768766,1780411754000,-160.0,0.00016826,2]
[423768775,1780411754000,-186.97969627,0.00016936,2]
[423768768,1780411754000,-160.0,0.00016826,2]
[423768761,1780411754000,-153.16054573,0.0001615,2]
[423768764,1780411754000,-1754.42318499,0.000168,2]
[423768762,1780411754000,-420.67,0.00016164,2]
[423768765,1780411754000,-1756.71429239,0.000168,2]
[423768763,1780411754000,-337.60694895,0.00016366,2]
[423768759,1780411754000,-158.01976539,0.00016095,2]
[423768760,1780411754000,-162.18945178,0.0001615,2]
[423768756,1780411754000,-256.9075739,0.0001589,2]
[423768758,1780411754000,-188.76971046,0.00016092,2]
[423768757,1780411754000,-500.0,0.0001589,2]
[423768755,1780411754000,-500.0,0.00015616,2]
[423768777,1780411754000,-195.87715536,0.00016936,2]
[423768767,1780411754000,-160.0,0.00016826,2]
[423768778,1780411754000,-154.35805235,0.00016936,2]
[423768784,1780411754000,-1756.71429239,0.000172,2]
[423768780,1780411754000,-235.79946263,0.00016936,2]
[423768805,1780411754000,-191.2602274,0.0001746,2]
[423768804,1780411754000,-471.59892526,0.0001746,2]
[423768801,1780411754000,-308.71610471,0.0001746,2]
[423768800,1780411754000,-391.75431072,0.0001746,2]
[423768799,1780411754000,-381.84115765,0.0001746,2]
[423768803,1780411754000,-210.29555072,0.0001746,2]
[423768802,1780411754000,-459.48163718,0.0001746,2]
[423768781,1780411754000,-1754.42318499,0.00017,2]
[423768795,1780411754000,-216.40726724,0.0001746,2]
[423768796,1780411754000,-192.40044766,0.0001746,2]
[423768798,1780411754000,-373.95939254,0.0001746,2]
[423768793,1780411754000,-474.05929617,0.00017402,2]
[423768797,1780411754000,-486.56835534,0.0001746,2]
[423768792,1780411754000,-440.30075839,0.00017402,2]
[423768791,1780411754000,-151.0,0.000174,2]
[423768790,1780411754000,-305.18771492,0.00017399,2]
[423768788,1780411754000,-178.58699578,0.00017399,2]
[423768789,1780411754000,-566.30913138,0.00017399,2]
[423768785,1780411754000,-1754.42318499,0.000173,2]
[423768787,1780411754000,-157.68184844,0.00017399,2]
[423768786,1780411754000,-1756.71429239,0.000173,2]
[423768783,1780411754000,-1754.42318499,0.000172,2]
[423768794,1780411754000,-334.67073784,0.00017402,2]
[423768782,1780411754000,-1756.71429239,0.00017,2]
[423768814,1780411755000,-457.78157238,0.00017747,2]
[423768815,1780411755000,-315.36369689,0.00017747,2]
[423768810,1780411755000,-185.5411335,0.00017747,2]
[423768812,1780411755000,-192.53560129,0.00017747,2]
[423768806,1780411755000,-372.97529598,0.00017466,2]
[423768809,1780411755000,-1754.42318499,0.000177,2]
[423768808,1780411755000,-1756.71429239,0.000175,2]
[423768807,1780411755000,-1754.42318499,0.000175,2]
[423768816,1780411755000,-755.07884184,0.00017747,2]
[423768813,1780411755000,-194.26700046,0.00017747,2]
[423768818,1780411755000,-632.07906155,0.0001775,2]
[423768811,1780411755000,-357.17399157,0.00017747,2]
[423768820,1780411755000,-432.81453448,0.00017809,2]
[423768817,1780411755000,-660.45113758,0.0001775,2]
[423768828,1780411755000,-420.59110144,0.00017809,2]
[423768827,1780411755000,-271.5902848,0.00017809,2]
[423768824,1780411755000,-572.76173648,0.00017809,2]
[423768826,1780411755000,-612.6421829,0.00017809,2]
[423768829,1780411755000,-482.10807152,0.00017809,2]
[423768821,1780411755000,-384.80089532,0.00017809,2]
[423768823,1780411755000,-560.93908882,0.00017809,2]
[423768822,1780411755000,-154.41734759,0.00017809,2]
[423768819,1780411755000,-502.00610677,0.0001775,2]
[423768825,1780411755000,-587.63146609,0.00017809,2]
[423768837,1780411770000,-151.0,0.000185,2]
[423768830,1780411770000,-1618.04061839,0.00017455,2]
[423768831,1780411770000,-5000.0,0.00017631,2]
[423768833,1780411770000,-382.5204548,0.00017809,2]
[423768834,1780411770000,-345.1453606,0.00017832,2]
[423768832,1780411770000,-225.29031638,0.00017809,2]
[423768835,1780411770000,-151.0,0.00018,2]
[423768836,1780411770000,-790.09882694,0.00018099,2]
[423768839,1780411770000,-948.11859233,0.00018621,2]
[423768842,1780411770000,-151.5,0.00019452,2]
[423768840,1780411770000,-161.588,0.00019097,2]
[423768841,1780411770000,-151.0,0.000191,2]
[423768844,1780411770000,-151.5,0.00019452,2]
[423768843,1780411770000,-151.5,0.00019452,2]
[423768845,1780411770000,-151.5,0.00019452,2]
[423768848,1780411770000,-443.71199004,0.00019666,2]
[423768847,1780411770000,-233.26944848,0.00019452,2]
[423768846,1780411770000,-151.5,0.00019452,2]
[423768849,1780411770000,-99.17908285,0.000197,2]
[423768838,1780411770000,-408.34364301,0.00018566,2]
[423768885,1780411832000,-1204.33855349,0.00016632,2]
[423768884,1780411832000,-605.52935036,0.00016632,2]
[423768883,1780411832000,-802.87585299,0.00016632,2]
[423769272,1780411840000,-2223.50734023,0.00016632,2]
[423769274,1780411840000,-163.74890293,0.00016632,2]
[423769278,1780411840000,-1403.538548,0.00017,2]
[423769276,1780411840000,-1403.538548,0.000168,2]
[423769280,1780411840000,-631.4571744,0.000172,2]
[423769345,1780411841000,-755.35262804,0.00021918,2]
[423769349,1780411841000,-151.0,0.00022,3]
[423769344,1780411841000,-424.88585327,0.00021918,2]
[423769341,1780411841000,-236.04769626,0.00021918,2]
[423769351,1780411841000,-164.05,0.00022089,10]
[423769361,1780411841000,-151.0,0.000226,5]
[423769353,1780411841000,-842.843365,0.00022188,2]
[423769380,1780411841000,-151.0,0.00023127,2]
[423769366,1780411841000,-151.0,0.000229,5]
[423769388,1780411841000,-151.0,0.00023127,2]
[423769368,1780411841000,-549.81703114,0.00022966,2]
[423769374,1780411841000,-150.79,0.00023089,10]
[423769372,1780411841000,-824.0,0.00023007,3]
[423769384,1780411841000,-151.0,0.00023127,2]
[423769376,1780411841000,-152.32,0.00023107,7]
[423769370,1780411841000,-160.0,0.00023,2]
[423769359,1780411841000,-151.0,0.000226,6]
[423769365,1780411841000,-502.00320677,0.00022761,2]
[423769378,1780411841000,-151.0,0.00023127,2]
[423769386,1780411841000,-151.0,0.00023127,2]
[423769390,1780411841000,-151.0,0.00023127,2]
[423769392,1780411841000,-151.0,0.00023127,2]
[423769398,1780411841000,-151.0,0.00023127,2]
[423769395,1780411841000,-151.0,0.00023127,2]
[423769400,1780411841000,-152.32,0.00023157,7]
[423769404,1780411841000,-661.99,0.000232,30]
[423769396,1780411841000,-283.51319,0.00023127,2]
[423769382,1780411841000,-151.0,0.00023127,2]
[423769363,1780411841000,-162.0,0.00022644,30]
[423769302,1780411841000,-151.0,0.000197,2]
[423769357,1780411841000,-151.0,0.000223,6]
[423769402,1780411841000,-1000.0,0.0002319,5]
[423769315,1780411841000,-627.29264767,0.00020485,2]
[423769296,1780411841000,-1403.538548,0.000175,2]
[423769290,1780411841000,-772.0813736,0.000172,2]
[423769313,1780411841000,-6767.993011,0.00020485,2]
[423769309,1780411841000,-200.0,0.000202,3]
[423769304,1780411841000,-151.0,0.000197,2]
[423769298,1780411841000,-432.50520475,0.00017809,2]
[423769311,1780411841000,-151.0,0.000203,4]
[423769307,1780411841000,-151.00000001,0.000197,2]
[423769294,1780411841000,-216.25260237,0.0001746,2]
[423769300,1780411841000,-51.82091715,0.000197,2]
[423769292,1780411841000,-1403.538548,0.000173,2]
[423769305,1780411841000,-151.0,0.000197,2]
[423769339,1780411841000,-514.44868411,0.00021866,2]
[423769320,1780411841000,-2206.0,0.00020527,2]
[423769326,1780411841000,-26204.857696,0.00020601,2]
[423769336,1780411841000,-161.0,0.00021644,30]
[423769328,1780411841000,-479.08033707,0.00020766,2]
[423769338,1780411841000,-151.0,0.000217,4]
[423769334,1780411841000,-151.0,0.000214,3]
[423769322,1780411841000,-151.585,0.00020527,2]
[423769330,1780411841000,-151.0,0.000208,4]
[423769318,1780411841000,-1836.0,0.00020527,2]
[423769316,1780411841000,-1415.0,0.00020527,2]
[423769324,1780411841000,-295.0975718,0.00020601,2]
[423769332,1780411841000,-200.0,0.00021,2]
[423769347,1780411841000,-151.0,0.00022,9]
[423769407,1780411841000,-151.0,0.000232,9]
[423769519,1780411841000,-152.0,0.00023879,7]
[423769413,1780411841000,-180.89012437,0.00023227,7]
[423769485,1780411841000,-1836.0,0.00023527,2]
[423769483,1780411841000,-1415.0,0.00023527,2]
[423769477,1780411841000,-152.32,0.00023457,7]
[423769471,1780411841000,-152.32,0.00023407,7]
[423769475,1780411841000,-568.55438141,0.00023423,7]
[423769469,1780411841000,-151.0,0.000234,6]
[423769489,1780411841000,-152.32,0.00023557,7]
[423769491,1780411841000,-151.0,0.000236,7]
[423769505,1780411841000,-152.0,0.00023747,7]
[423769509,1780411841000,-152.0,0.00023786,7]
[423769511,1780411841000,-151.0,0.000238,8]
[423769493,1780411841000,-152.32,0.00023607,7]
[423769495,1780411841000,-152.32,0.00023657,7]
[423769516,1780411841000,-300.0,0.00023852,5]
[423769503,1780411841000,-152.0,0.00023747,7]
[423769501,1780411841000,-152.32,0.00023707,7]
[423769497,1780411841000,-600.0,0.0002369,10]
[423769499,1780411841000,-151.0,0.000237,5]
[423769508,1780411841000,-152.32,0.00023757,7]
[423769514,1780411841000,-152.32,0.00023807,7]
[423769517,1780411841000,-152.32,0.00023857,7]
[423769531,1780411841000,-585.18537817,0.00024066,2]
[423769521,1780411841000,-151.0,0.000239,10]
[423769526,1780411841000,-152.32,0.00023957,7]
[423769523,1780411841000,-152.32,0.00023907,7]
[423769527,1780411841000,-152.32,0.00024007,7]
[423769409,1780411841000,-152.32,0.00023207,7]
[423769481,1780411841000,-152.32,0.00023507,7]
[423769473,1780411841000,-169.06226888,0.00023423,7]
[423769529,1780411841000,-152.32,0.00024057,7]
[423769479,1780411841000,-151.0,0.000235,120]
[423769411,1780411841000,-270.09212425,0.00023223,2]
[423769430,1780411841000,-35584.91246096,0.00023288,8]
[423769426,1780411841000,-151.0,0.00023288,2]
[423769428,1780411841000,-151.0,0.00023288,2]
[423769415,1780411841000,-575.0,0.00023229,30]
[423769422,1780411841000,-621.42476989,0.00023288,120]
[423769436,1780411841000,-457.0791509,0.00023288,2]
[423769424,1780411841000,-151.0,0.00023288,2]
[423769467,1780411841000,-152.32,0.00023357,7]
[423769438,1780411841000,-153.5919341,0.00023288,2]
[423769418,1780411841000,-318.55968363,0.0002323,120]
[423769434,1780411841000,-326.2939756,0.00023288,2]
[423769432,1780411841000,-151.0,0.00023288,2]
[423769442,1780411841000,-457.0791509,0.00023288,2]
[423769420,1780411841000,-152.32,0.00023257,7]
[423769465,1780411841000,-152.32,0.00023307,7]
[423769487,1780411841000,-2206.0,0.00023527,2]
[423769444,1780411841000,-457.0791509,0.00023288,2]
[423769463,1780411841000,-154.0,0.00023288,120]
[423769455,1780411841000,-457.0791509,0.00023288,2]
[423769446,1780411841000,-326.2939756,0.00023288,2]
[423769440,1780411841000,-326.2939756,0.00023288,2]
[423769457,1780411841000,-389.769507,0.00023288,2]
[423769451,1780411841000,-457.0791509,0.00023288,2]
[423769450,1780411841000,-317.8400828,0.00023288,2]
[423769453,1780411841000,-326.2939756,0.00023288,2]
[423769448,1780411841000,-326.2939756,0.00023288,2]
[423769459,1780411841000,-269.42040041,0.00023288,2]
[423769461,1780411841000,-161.0,0.00023288,120]
[423769598,1780411842000,-500.0,0.000249,9]
[423769633,1780411842000,-151.0,0.00025,2]
[423769600,1780411842000,-500.0,0.000249,9]
[423769596,1780411842000,-501.26020794,0.000249,9]
[423769612,1780411842000,-160.0,0.00016818,2]
[423769605,1780411842000,-26209.36203943,0.00025,30]
[423769614,1780411842000,-115223.73058308,0.00025,30]
[423769593,1780411842000,-151.0,0.000248,6]
[423769595,1780411842000,-152.64397976,0.00024807,7]
[423769607,1780411842000,-27143.84060538,0.00025,30]
[423769609,1780411842000,-57632.42881154,0.00025,30]
[423769625,1780411842000,-160.0,0.00025,30]
[423769642,1780411842000,-151.0,0.00025,2]
[423769632,1780411842000,-151.0,0.00025,2]
[423769634,1780411842000,-151.0,0.00025,2]
[423769629,1780411842000,-151.0,0.00025,2]
[423769618,1780411842000,-200000.0,0.00025,30]
[423769627,1780411842000,-151.0,0.00025,2]
[423769616,1780411842000,-200000.0,0.00025,30]
[423769622,1780411842000,-200000.0,0.00025,30]
[423769635,1780411842000,-151.0,0.00025,2]
[423769637,1780411842000,-151.0,0.00025,2]
[423769638,1780411842000,-151.0,0.00025,2]
[423769640,1780411842000,-151.0,0.00025,2]
[423769644,1780411842000,-151.0,0.00025,2]
[423769602,1780411842000,-64028.9098098,0.00025,30]
[423769631,1780411842000,-151.0,0.00025,2]
[423769583,1780411842000,-794.84687472,0.00024625,3]
[423769551,1780411842000,-151.0,0.000243,5]
[423769558,1780411842000,-151.0,0.000244,6]
[423769639,1780411842000,-151.0,0.00025,2]
[423769537,1780411842000,-152.32,0.00024157,7]
[423769533,1780411842000,-151.0,0.000241,8]
[423769535,1780411842000,-152.32,0.00024107,7]
[423769542,1780411842000,-152.32,0.00024207,7]
[423769539,1780411842000,-795.0,0.000242,2]
[423769543,1780411842000,-152.32,0.00024257,7]
[423769589,1780411842000,-152.32,0.00024707,7]
[423769545,1780411842000,-151.13,0.0002428,7]
[423769557,1780411842000,-180.89012437,0.00024388,7]
[423769574,1780411842000,-151.0,0.000246,8]
[423769547,1780411842000,-161.0,0.00024288,120]
[423769562,1780411842000,-152.32,0.00024407,7]
[423769570,1780411842000,-152.32,0.00024557,7]
[423769572,1780411842000,-300.0,0.00024575,7]
[423769549,1780411842000,-155.26171622,0.00024288,120]
[423769591,1780411842000,-152.32,0.00024757,7]
[423769579,1780411842000,-651.0,0.00024625,3]
[423769555,1780411842000,-152.32,0.00024357,7]
[423769587,1780411842000,-151.0,0.000247,120]
[423769581,1780411842000,-651.0,0.00024625,3]
[423769564,1780411842000,-152.32,0.00024457,7]
[423769568,1780411842000,-152.32,0.00024507,7]
[423769560,1780411842000,-858.73861982,0.00024402,2]
[423769566,1780411842000,-151.0,0.000245,6]
[423769576,1780411842000,-152.32,0.00024607,7]
[423769553,1780411842000,-152.32,0.00024307,7]
[423769578,1780411842000,-200.0,0.00024625,3]
[423769643,1780411842000,-293.331155,0.00025,2]
[423769585,1780411842000,-152.32,0.00024657,7]
[423769648,1780411842000,-151.0,0.00025,2]
[423769682,1780411842000,-151.0,0.00025,2]
[423769690,1780411842000,-169.503549,0.00025,2]
[423769686,1780411842000,-169.503549,0.00025,2]
[423769689,1780411842000,-169.503549,0.00025,2]
[423769683,1780411842000,-169.503549,0.00025,2]
[423769685,1780411842000,-169.503549,0.00025,2]
[423769692,1780411842000,-169.503549,0.00025,2]
[423769687,1780411842000,-169.503549,0.00025,2]
[423769710,1780411842000,-720.0,0.00026059,10]
[423769684,1780411842000,-203.107492,0.00025,2]
[423769693,1780411842000,-169.503549,0.00025,2]
[423769694,1780411842000,-169.503549,0.00025,2]
[423769691,1780411842000,-169.503549,0.00025,2]
[423769688,1780411842000,-169.503549,0.00025,2]
[423769706,1780411842000,-160.0,0.000258,30]
[423769705,1780411842000,-161.0,0.00025288,120]
[423769697,1780411842000,-169.503549,0.00025,2]
[423769703,1780411842000,-151.0,0.00025,6]
[423769701,1780411842000,-151.0,0.00025,10]
[423769707,1780411842000,-151.0,0.000259,120]
[423769708,1780411842000,-200.0,0.00026,120]
[423769699,1780411842000,-169.503549,0.00025,2]
[423769696,1780411842000,-169.503549,0.00025,2]
[423769702,1780411842000,-151.0,0.00025,8]
[423769704,1780411842000,-620.5537252,0.00025166,2]
[423769700,1780411842000,-169.50354729,0.00025,2]
[423769647,1780411842000,-243.662454,0.00025,2]
[423769681,1780411842000,-169.503549,0.00025,2]
[423769677,1780411842000,-151.0,0.00025,2]
[423769698,1780411842000,-169.503549,0.00025,2]
[423769678,1780411842000,-169.503549,0.00025,2]
[423769679,1780411842000,-169.503549,0.00025,2]
[423769636,1780411842000,-151.0,0.00025,2]
[423769641,1780411842000,-151.0,0.00025,2]
[423769645,1780411842000,-151.0,0.00025,2]
[423769651,1780411842000,-151.0,0.00025,2]
[423769654,1780411842000,-151.0,0.00025,2]
[423769646,1780411842000,-288.369756,0.00025,2]
[423769661,1780411842000,-151.0,0.00025,2]
[423769660,1780411842000,-397.91737953,0.00025,2]
[423769659,1780411842000,-213.06502,0.00025,2]
[423769658,1780411842000,-151.0,0.00025,2]
[423769662,1780411842000,-151.0,0.00025,2]
[423769649,1780411842000,-151.0,0.00025,2]
[423769656,1780411842000,-151.0,0.00025,2]
[423769650,1780411842000,-151.0,0.00025,2]
[423769676,1780411842000,-169.503549,0.00025,2]
[423769653,1780411842000,-151.0,0.00025,2]
[423769672,1780411842000,-151.0,0.00025,2]
[423769673,1780411842000,-151.0,0.00025,2]
[423769670,1780411842000,-151.0,0.00025,2]
[423769663,1780411842000,-151.0,0.00025,2]
[423769675,1780411842000,-151.0,0.00025,2]
[423769667,1780411842000,-151.0,0.00025,2]
[423769668,1780411842000,-151.0,0.00025,2]
[423769665,1780411842000,-151.0,0.00025,2]
[423769657,1780411842000,-151.0,0.00025,2]
[423769655,1780411842000,-151.0,0.00025,2]
[423769666,1780411842000,-151.0,0.00025,2]
[423769728,1780411843000,-1003.19,0.000282,30]
[423769746,1780411843000,-300.0,0.00028877,10]
[423769748,1780411843000,-220.4,0.00028877,10]
[423769720,1780411843000,-151.0,0.000271,120]
[423769726,1780411843000,-200.0,0.00028,120]
[423769732,1780411843000,-151.0,0.000283,120]
[423769713,1780411843000,-161.0,0.00026288,120]
[423769718,1780411843000,-2204.0,0.00026527,2]
[423769712,1780411843000,-655.92207224,0.00026266,2]
[423769714,1780411843000,-160.0,0.000265,30]
[423769715,1780411843000,-1415.0,0.00026527,2]
[423769716,1780411843000,-1836.0,0.00026527,2]
[423769740,1780411843000,-864.0,0.00028665,30]
[423769730,1780411843000,-161.0,0.00028288,120]
[423769724,1780411843000,-691.29041927,0.00027366,2]
[423769760,1780411843000,-7000.0,0.00029,5]
[423769736,1780411843000,-726.6587663,0.00028466,2]
[423769823,1780411843000,-2544.99148663,0.00029,30]
[423769821,1780411843000,-1335.28898699,0.00018007,2]
[423769822,1780411843000,-137.75977714,0.00018007,2]
[423769820,1780411843000,-5387.24119977,0.00018007,2]
[423769819,1780411843000,-10828.6594506,0.00018007,2]
[423769766,1780411843000,-81849.40890353,0.00029,30]
[423769722,1780411843000,-161.0,0.00027288,120]
[423769762,1780411843000,-600.0,0.00029,14]
[423769756,1780411843000,-1059.0,0.0002888,14]
[423769754,1780411843000,-1059.0,0.0002888,14]
[423769758,1780411843000,-7000.0,0.00029,2]
[423769752,1780411843000,-340.49483664,0.0002888,5]
[423769764,1780411843000,-50300.32493323,0.00029,3]
[423769743,1780411843000,-300.0,0.00028877,10]
[423769750,1780411843000,-618870.25192678,0.0002888,10]
[423769840,1780411844000,-16247.21504921,0.00029,30]
[423769874,1780411844000,-402.29428288,0.00029,30]
[423769838,1780411844000,-302.62139999,0.00029,30]
[423770046,1780411846000,-318.55968363,0.00023288,120]
[423770044,1780411846000,-160.0,0.00016818,2]
[423770047,1780411846000,-3366.40113333,0.00029,30]
[423770048,1780411846000,-12526.52576374,0.00029,30]
[423770050,1780411846000,-82760.54198069,0.00029,30]
[423770051,1780411846000,-160.0,0.00029,10]
[423770056,1780411846000,-200.0,0.00029487,120]
[423770057,1780411846000,-600.0,0.000295,14]
[423770054,1780411846000,-161.0,0.00029288,120]
[423770052,1780411846000,-160.0,0.00029,10]
[423770055,1780411846000,-151.0,0.000294,120]
[423770053,1780411846000,-160.0,0.00029,3]
[423770058,1780411846000,-1415.0,0.00029527,2]
[423770061,1780411846000,-4685.2611733,0.000299,2]
[423770068,1780411846000,-595.5958337,0.0003,5]
[423770073,1780411846000,-1104.04696051,0.0003,8]
[423770071,1780411846000,-3750.0,0.0003,3]
[423770069,1780411846000,-88.59521122,0.0003,3]
[423770072,1780411846000,-17284.26054933,0.0003,3]
[423770070,1780411846000,-3877.14423945,0.0003,3]
[423770064,1780411846000,-600.0,0.0003,14]
[423770059,1780411846000,-1836.0,0.00029527,2]
[423770063,1780411846000,-800.0,0.0002998,30]
[423770060,1780411846000,-495.15685845,0.00029566,30]
[423770065,1780411846000,-1000.0,0.0003,120]
[423770066,1780411846000,-258.0,0.0003,3]
[423770067,1780411846000,-1156.78639115,0.0003,120]
[423770062,1780411846000,-160.0,0.000299,3]
[423770218,1780411971000,-500.0,0.00013698,2]
[423770228,1780411982000,-281.97250131,0.00013835,2]
[423770231,1780412035000,-500.0,0.00013972,2]
[423770232,1780412046000,-500.0,0.00014246,2]
[423770233,1780412057000,-501.26020794,0.00013972,2]
[423770364,1780412071000,-501.26020794,0.00013972,2]